Cogmind - Beta 12 @@@ ROGUE MODE // 2023.03.06 @ 00:46:19 Player: Wayland Result: Destroyed by C-57 Dissector with Dual-blade Saw Performance ------------- Evolutions (8) 4000 Regions Visited (11) 2200 Robots Destroyed (8) 40 Value Destroyed (128) 128 Prototype IDs (6) 120 Alien Tech Used (0) 0 Bonus (500) 500 TOTAL SCORE: 6988 Bonus ------- Entered DSFs 500 Cogmind --------- Core Integrity 0/1450 Matter 77/300 Energy 99/100 System Corruption 1% Temperature Cool (0) Movement Core (50) Location -2/Research Parts ------- > --- POWER (2) -------- (None) > --- PROPULSION (10) -- (None) > --- UTILITY (9) ------ (None) > --- WEAPON (2) ------- (None) > --- INVENTORY (5) ---- Light Antimatter Reactor Micro Antimatter Reactor Advanced Component Analysis Suite Mini Drone Bay (3/3) Enhanced Quantum Rifle Peak State ------------ > --- POWER ------------ Light Antimatter Reactor Compact Particle Reactor > --- PROPULSION ------- Field Propulsion Drive Field Propulsion Drive Nuclear Pulse Array Nuclear Pulse Array Nuclear Pulse Array Field Propulsion Array > --- UTILITY ---------- Experimental Coolant Injector Large Storage Unit Improved Matter Compressor Improved Signal Interpreter Transmission Jammer Advanced Force Field Improved Hacking Suite Improved Hacking Suite System Shield > --- WEAPON ----------- Gatling Laser > --- INVENTORY -------- Neutrino Core Light Antimatter Reactor Micro Antimatter Reactor Improved Cesium-ion Thruster Field Propulsion Drive Cooled Impulse Thruster Advanced Component Analysis Suite Improved System Guard System Restoration Module Mini Drone Bay Gatling Laser Enhanced Quantum Rifle Compact HERF Cannon Railgun Micro-nuke Launcher [Rating: 137] Favorites ----------- Power Light Nuclear Core Engine Ion Engine Power Core Light Nuclear Core Reactor Light Antimatter Reactor Propulsion Improved Cesium-ion Thruster Leg Aluminum Leg Wheel Compact Wheel Hover Unit Improved Gyrokinetic Inverter Flight Unit Improved Cesium-ion Thruster Utility Improved Hacking Suite Device Transmission Jammer Storage Large Storage Unit Processor Advanced Visual Processing Unit Hackware Improved Hacking Suite Weapon Assault Rifle Energy Gun Small Laser Energy Cannon Compact HERF Cannon Ballistic Gun Assault Rifle Impact Weapon Powered Hammer Build | -11 -10 -9 -8 -7 -7 -6 -5 -4 -3 -3 -2 ------- Run | Jun Mat Mat Mat Fac DSF Fac Fac Fac Res Tes Res Slots Evolved 16 | . . 2 2 2 . 2 2 2 2 . 2 Power 1 | . . . . . . . 1 . . . . Propulsion 8 | . . 2 2 1 . 1 . . 2 . . Utility 7 | . . . . 1 . 1 1 2 . . 2 Weapon . | . . . . . . . . . . . . Parts Attached 74 | . 6 4 3 8 3 8 10 9 6 5 12 Power 12 | . 1 . . 1 . 1 5 1 2 . 1 Engine 3 | . 1 . . . . . 2 . . . . Core 7 | . . . . 1 . 1 3 1 1 . . Reactor 2 | . . . . . . . . . 1 . 1 Propulsion 33 | . 3 4 2 4 1 4 3 3 2 2 5 Treads . | . . . . . . . . . . . . Leg . | . . . . . . . . . . . . Wheel 1 | . . . . . . . . 1 . . . Hover 1 | . . . . . . . . . . . 1 Flight 31 | . 3 4 2 4 1 4 3 2 2 2 4 Utility 21 | . . . 1 3 . 3 1 5 2 2 4 Device 9 | . . . . 1 . 1 . 3 1 2 1 Storage 3 | . . . . 1 . . . 1 . . 1 Processor 4 | . . . 1 1 . . . . . . 2 Hackware 5 | . . . . . . 2 1 1 1 . . Protection . | . . . . . . . . . . . . Artifact . | . . . . . . . . . . . . Weapon 8 | . 2 . . . 2 . 1 . . 1 2 Energy Gun 5 | . 2 . . . 2 . . . . . 1 Energy Cannon 2 | . . . . . . . . . . 1 1 Ballistic Gun . | . . . . . . . . . . . . Ballistic Cannon . | . . . . . . . . . . . . Launcher . | . . . . . . . . . . . . Special Weapon . | . . . . . . . . . . . . Impact Weapon 1 | . . . . . . . 1 . . . . Slashing Weapon . | . . . . . . . . . . . . Piercing Weapon . | . . . . . . . . . . . . Special Melee Weapon . | . . . . . . . . . . . . Unidentified Prototypes 6 | . . . . 1 . . . 1 . 2 2 Parts Lost 29 | . 1 . . . 2 3 9 1 . . 13 Power 2 | . . . . . . . 2 . . . . Propulsion 18 | . . . . . 1 3 4 1 . . 9 Utility 7 | . . . . . . . 3 . . . 4 Weapon 2 | . 1 . . . 1 . . . . . . Highest Loss Streak 8 | . 1 . . . 2 2 8 1 . . 8 To Critical Strikes . | . . . . . . . . . . . . Average Slot Usage (%) 71 | . 79 73 83 93 98 79 73 54 68 71 49 Engine 2 | . 14 11 9 . . . 1 . . . . Core 4 | . . . . 6 7 6 7 4 4 4 1 Reactor 1 | . . . . . . . . . 4 4 2 Leg 1 | . 18 . . . . . . . . . . Flight 30 | . 8 40 54 49 52 46 32 20 28 28 13 Device 4 | . . . . 1 . 5 4 5 8 9 7 Storage 6 | . 10 . . 3 7 6 5 9 9 9 6 Processor 3 | . . . 2 14 15 6 . . . . 3 Hackware 8 | . . . . . . 6 15 10 12 14 11 Energy Gun 3 | . 13 11 9 7 7 . . . . . . Ballistic Gun 2 | . 14 11 9 7 6 . . . . . . Naked Turns 1 | . . . . . . . . . . . 1 Heaviest Build 68 | 12 12 8 8 28 31 28 45 31 66 66 68 Greatest Support 68 | 20 20 16 24 36 36 42 50 32 66 68 68 Greatest Overweight (x) 7 | . 2 . . . 1 . 1 . . . 7 Average Overweight (x) . | . . . . . . . . . . . . Largest Inventory Capacity 15 | . 8 5 5 15 15 15 15 15 15 15 15 Average Capacity 12 | . 7 5 5 9 15 15 15 15 15 15 10 Most Carried 15 | . 8 5 4 10 15 15 15 15 12 15 15 Average Carried 10 | . 6 3 2 6 12 13 14 12 10 12 10 Final Capacity 15 | 8 5 5 5 15 15 15 15 15 15 15 5 Final Carried 15 | 6 5 4 3 10 15 15 15 13 11 15 5 Class Distribution -------------------- 44% | Hacker-Sprinter 19% | Sprinter 16% | Hacker-Mutant 10% | Mutant 8% | Scavenger-Sprinter Dominant Class ---------------- Mutant | -10/Materials Sprinter | -9/Materials Scavenger-Sprinter | -8/Materials Sprinter | -7/Factory Sprinter | -7/DSF Sprinter | -6/Factory Hacker-Sprinter | -5/Factory Hacker-Mutant | -4/Factory Hacker-Sprinter | -3/Research Hacker-Sprinter | -3/Testing Hacker-Mutant | -2/Research Resources | -11 -10 -9 -8 -7 -7 -6 -5 -4 -3 -3 -2 ----------- Run | Jun Mat Mat Mat Fac DSF Fac Fac Fac Res Tes Res Matter Collected 628 | 200 92 . 88 20 . 101 117 . . 10 . Remotely . | . . . . . . . . . . . . Salvage Created 176 | . 149 . . . . . 27 . . . . Parts 14 | . 14 . . . . . . . . . . Haulers Intercepted . | . . . . . . . . . . . . Recyclers Shooed . | . . . . . . . . . . . . Parts Field Recycled . | . . . . . . . . . . . . Retrieved Matter . | . . . . . . . . . . . . Parts Self-Destructed . | . . . . . . . . . . . . Prevented . | . . . . . . . . . . . . Kills | -11 -10 -9 -8 -7 -7 -6 -5 -4 -3 -3 -2 ------- Run | Jun Mat Mat Mat Fac DSF Fac Fac Fac Res Tes Res Combat Hostiles Destroyed 7 | . 7 . . . . . . . . . . Guns 7 | . 7 . . . . . . . . . . Classes Destroyed 3 | . 2 . . . . . 1 . . . . Operator 1 | . . . . . . . 1 . . . . Swarmer 6 | . 6 . . . . . . . . . . Grunt 1 | . 1 . . . . . . . . . . Best Kill Streak 7 | . 7 . . . . . 1 . . . . Combat Bots Only 7 | . 7 . . . . . . . . . . Max Kills in Single Turn 1 | . 1 . . . . . 1 . . . . Gunslinging . | . . . . . . . . . . . . Exploded . | . . . . . . . . . . . . Melee . | . . . . . . . . . . . . Uniques/NPCs Destroyed . | . . . . . . . . . . . . Combat | -11 -10 -9 -8 -7 -7 -6 -5 -4 -3 -3 -2 -------- Run | Jun Mat Mat Mat Fac DSF Fac Fac Fac Res Tes Res Damage Taken 4723 | . 212 59 43 . 271 230 1039 188 65 214 2402 Core 2111 | . 16 11 . . 9 91 409 43 28 37 1467 Absorbed by Shields 253 | . . . . . . . . . 68 98 87 Core Remaining (%) 91 | 100 93 97 100 . 98 89 59 96 . 95 . Volleys Fired 19 | . 19 . . . . . . . . . . Largest 2 | . 2 . . . . . . . . . . Hottest 60 | . 60 . . . . . . . . . . Shots Fired 34 | . 34 . . . . . . . . . . Gun 34 | . 34 . . . . . . . . . . Cannon . | . . . . . . . . . . . . Launcher . | . . . . . . . . . . . . Special . | . . . . . . . . . . . . Kinetic 19 | . 19 . . . . . . . . . . Thermal 6 | . 6 . . . . . . . . . . Explosive . | . . . . . . . . . . . . Electromagnetic 9 | . 9 . . . . . . . . . . Robot Hit Streak 8 | . 8 . . . . . . . . . . Robot Miss Streak 2 | . 2 . . . . . . . . . . Penetration Max . | . . . . . . . . . . . . Secondary Targets . | . . . . . . . . . . . . Shots Hit Robots 27 | . 26 . . . . . 1 . . . . Core Hits 9 | . 8 . . . . . 1 . . . . Critical Kills . | . . . . . . . . . . . . Critical Parts Destroyed . | . . . . . . . . . . . . Critical Strikes 1 | . 1 . . . . . . . . . . Corrupt 1 | . 1 . . . . . . . . . . Melee Attacks 5 | . . . . . . . 5 . . . . Impact 5 | . . . . . . . 5 . . . . Slashing . | . . . . . . . . . . . . Piercing . | . . . . . . . . . . . . Sneak Attacks . | . . . . . . . . . . . . Combat Hostiles . | . . . . . . . . . . . . Follow-up Attacks . | . . . . . . . . . . . . Damage Inflicted 382 | . 310 . . . . . 58 . . . 14 Guns 310 | . 310 . . . . . . . . . . Cannons . | . . . . . . . . . . . . Explosions . | . . . . . . . . . . . . Melee 57 | . . . . . . . 57 . . . . Ramming 15 | . . . . . . . 1 . . . 14 Kinetic 154 | . 154 . . . . . . . . . . Thermal 43 | . 43 . . . . . . . . . . Explosive . | . . . . . . . . . . . . Electromagnetic 113 | . 113 . . . . . . . . . . Impact 57 | . . . . . . . 57 . . . . Slashing . | . . . . . . . . . . . . Piercing . | . . . . . . . . . . . . Highest Corruption 1 | . 1 . . . . . . 1 . . 1 Average Corruption 1 | . 1 . . . . . . 1 . . 1 Corruption Purged . | . . . . . . . . . . . . Corruption Blocked 15 | . . . . . . . . . . 15 . Effects 2 | . 1 . . . . . . . . . 1 Message Errors 1 | . . . . . . . . . . . 1 Matter Fused 1 | . 1 . . . . . . . . . . Overload Shots . | . . . . . . . . . . . . Overflow Damage 22 | . . . . . . . 22 . . . . Projectiles . | . . . . . . . . . . . . Explosions . | . . . . . . . . . . . . Melee 22 | . . . . . . . 22 . . . . Knockbacks 1 | . . . . . . . 1 . . . . Impact 1 | . . . . . . . 1 . . . . Kinetic . | . . . . . . . . . . . . Secondary . | . . . . . . . . . . . . Self-Inflicted Damage 6 | . . . . . . . . . . . 6 Shots . | . . . . . . . . . . . . Rammed 6 | . . . . . . . 1 . . . 5 Targets Rammed 6 | . . . . . . . 1 . . . 5 Kicked . | . . . . . . . . . . . . Crushed . | . . . . . . . . . . . . Highest Temperature 328 | . 30 11 73 198 . 87 328 . 289 84 107 Average Temperature 76 | . 24 6 26 60 . 32 119 . 117 36 36 Received Heat Transfer 685 | . 30 33 36 . . 30 138 9 19 9 381 Effects 6 | . . . . . . . 1 . 5 . . Interference 6 | . . . . . . . 1 . 5 . . Siege Activations . | . . . . . . . . . . . . Robots Corrupted . | . . . . . . . . . . . . Combat Hostiles . | . . . . . . . . . . . . Parts Fried 2 | . . . . . . . 2 . . . . Impact Corruptions 1 | . . . . . . . 1 . . . . Robots Melted . | . . . . . . . . . . . . Combat Hostiles . | . . . . . . . . . . . . Parts Melted . | . . . . . . . . . . . . Heat Transferred 100 | . 100 . . . . . . . . . . Parts Sabotaged . | . . . . . . . . . . . . Parts Stolen . | . . . . . . . . . . . . Parts Stripped . | . . . . . . . . . . . . Power Chain Reactions . | . . . . . . . . . . . . Missiles Intercepted . | . . . . . . . . . . . . Alert | -11 -10 -9 -8 -7 -7 -6 -5 -4 -3 -3 -2 ------- Run | Jun Mat Mat Mat Fac DSF Fac Fac Fac Res Tes Res Peak Influence 264 | . 244 198 238 137 144 95 201 250 264 148 103 Initial 148 | . . 102 89 107 99 65 7 58 126 148 19 Average 105 | . 109 130 128 127 113 37 110 119 158 95 53 Maximum Alert Level 1 | . 1 . 1 . . . 1 1 1 . . Low Security (%) 93 | . 87 100 70 100 100 100 97 86 86 100 100 Level 1 6 | . 12 . 29 . . . 2 13 13 . . Level 2 . | . . . . . . . . . . . . Level 3 . | . . . . . . . . . . . . Level 4 . | . . . . . . . . . . . . Level 5 . | . . . . . . . . . . . . High Security . | . . . . . . . . . . . . Max Security . | . . . . . . . . . . . . Squads Dispatched 25 | . 3 2 2 1 2 1 3 3 3 3 2 Investigation 13 | . 1 2 2 1 . 1 1 . 2 2 1 Extermination 1 | . . . . . . . 1 . . . . Reinforcement 11 | . 2 . . . 2 . 1 3 1 1 1 Assault . | . . . . . . . . . . . . Garrison . | . . . . . . . . . . . . Intercept . | . . . . . . . . . . . . Searches Triggered . | . . . . . . . . . . . . Construction Impeded . | . . . . . . . . . . . . Haulers Reinforced . | . . . . . . . . . . . . Active Scanning Responses . | . . . . . . . . . . . . Cargo Convoy Interrupts . | . . . . . . . . . . . . Stealth | -11 -10 -9 -8 -7 -7 -6 -5 -4 -3 -3 -2 --------- Run | Jun Mat Mat Mat Fac DSF Fac Fac Fac Res Tes Res Distress Signals 6 | . . 1 2 . . 1 . . . 2 . Communications Jammed 32 | . . . . . . . . . 5 9 18 Distress Signals 32 | . . . . . . . . . 5 9 18 Times Spotted 132 | . 18 8 7 . 8 7 21 18 16 16 13 Peak Tracking Total 16 | . 9 8 7 . 6 9 7 6 12 16 9 Tactical Retreats 20 | . 1 1 2 . 2 4 4 3 1 . 2 Traps | -11 -10 -9 -8 -7 -7 -6 -5 -4 -3 -3 -2 ------- Run | Jun Mat Mat Mat Fac DSF Fac Fac Fac Res Tes Res Traps Triggered 3 | . . . . . . 2 . . . . 1 Indirectly . | . . . . . . . . . . . . Trap Hack Attempts . | . . . . . . . . . . . . Triggered . | . . . . . . . . . . . . Disarmed . | . . . . . . . . . . . . Reprogrammed . | . . . . . . . . . . . . Reused . | . . . . . . . . . . . . Traps Extracted . | . . . . . . . . . . . . Installed . | . . . . . . . . . . . . Triggered . | . . . . . . . . . . . . Machines | -11 -10 -9 -8 -7 -7 -6 -5 -4 -3 -3 -2 ---------- Run | Jun Mat Mat Mat Fac DSF Fac Fac Fac Res Tes Res Machines Disabled 1 | . . . . . . . 1 . . . . Max in Single Turn 1 | . . . . . . . 1 . . . . Machines Repaired . | . . . . . . . . . . . . Machines Sabotaged . | . . . . . . . . . . . . Overloaded Fab Kills . | . . . . . . . . . . . . Hacking | -11 -10 -9 -8 -7 -7 -6 -5 -4 -3 -3 -2 --------- Run | Jun Mat Mat Mat Fac DSF Fac Fac Fac Res Tes Res Machines Accessed 38 | . 3 3 5 5 . 4 3 3 5 1 6 Terminals 28 | . 3 3 5 2 . 2 2 1 5 1 4 Fabricators 3 | . . . . . . 1 . 2 . . . Repair Stations 4 | . . . . 2 . 1 1 . . . . Recycling Units 2 | . . . . 1 . . . . . . 1 Scanalyzers 1 | . . . . . . . . . . . 1 Garrison Access . | . . . . . . . . . . . . Total Hacks 101 | . 9 8 15 8 . 14 9 4 12 5 17 Successful 39 | . 3 2 6 2 . 6 3 3 6 1 7 Failed 62 | . 6 6 9 6 . 8 6 1 6 4 10 Catastrophic 15 | . . 3 3 1 . 2 1 1 2 . 2 Database Lockouts . | . . . . . . . . . . . . Manual 51 | . 4 6 11 2 . 3 9 1 4 . 11 Terminals 86 | . 9 8 15 5 . 10 8 1 12 5 13 Fabricators 6 | . . . . . . 3 . 3 . . . Repair Stations 4 | . . . . 2 . 1 1 . . . . Recycling Units 3 | . . . . 1 . . . . . . 2 Scanalyzers 2 | . . . . . . . . . . . 2 Garrison Access . | . . . . . . . . . . . . Terminal Hacks 20 | . 3 1 3 1 . 4 1 1 4 1 1 Record 1 | . . . . . . . . . 1 . . Part Schematic 2 | . . . . . . . . . 2 . . Robot Analysis 1 | . 1 . . . . . . . . . . Open DSF 2 | . . . . 1 . . . 1 . . . Level Access Points 4 | . 1 1 . . . . 1 . . . 1 Terminal Index 2 | . . . 1 . . . . . 1 . . Unreport Threat 7 | . . . 2 . . 4 . . . 1 . Zone Layout 1 | . 1 . . . . . . . . . . Fabricator Hacks 2 | . . . . . . 1 . 1 . . . Build 2 | . . . . . . 1 . 1 . . . Repair Station Hacks . | . . . . . . . . . . . . Recycling Unit Hacks 3 | . . . . 1 . . . . . . 2 Report Inventory 2 | . . . . 1 . . . . . . 1 Retrieve Components 1 | . . . . . . . . . . . 1 Scanalyzer 1 | . . . . . . . . . . . 1 Insert Component 1 | . . . . . . . . . . . 1 Garrison Access Hacks . | . . . . . . . . . . . . Unauthorized Hacks 13 | . . 1 3 . . 1 2 1 2 . 3 Terminals 11 | . . 1 3 . . 1 1 . 2 . 3 Assimilate 2 | . . . . . . . . . 1 . 1 Botnet 8 | . . 1 3 . . 1 1 . 1 . 1 Operators 1 | . . . . . . . . . . . 1 Fabricators 1 | . . . . . . . . 1 . . . Prioritize 1 | . . . . . . . . 1 . . . Repair Stations 1 | . . . . . . . 1 . . . . Mechanics 1 | . . . . . . . 1 . . . . Recycling Units . | . . . . . . . . . . . . Scanalyzers . | . . . . . . . . . . . . Garrison Access . | . . . . . . . . . . . . Data Cores Recovered . | . . . . . . . . . . . . Used . | . . . . . . . . . . . . Hacking Detections 33 | . 2 3 5 4 . 3 2 2 5 1 6 Full Trace Events 12 | . 1 2 2 1 . 1 1 . 2 1 1 Feedback Events 2 | . 1 . . . . . . . . . 1 Corruption 2 | . 1 . . . . . . . . . 1 Feedback Blocked . | . . . . . . . . . . . . Robot Schematics Acquired . | . . . . . . . . . . . . Robots Built 1 | . . . . . . . . 1 . . . Authchips . | . . . . . . . . . . . . Time 192 | . . . . . . 152 . 40 . . . Total Robot Build Rating 1 | . . . . . . . . 1 . . . Part Schematics Acquired 2 | . . . . . . . . . 2 . . Parts Built . | . . . . . . . . . . . . Authchips . | . . . . . . . . . . . . Time . | . . . . . . . . . . . . Total Part Build Rating . | . . . . . . . . . . . . Parts Repaired . | . . . . . . . . . . . . Time . | . . . . . . . . . . . . Parts Recycled . | . . . . . . . . . . . . Recycled Matter . | . . . . . . . . . . . . Retrieved Matter . | . . . . . . . . . . . . Retrieved Components 2 | . . . . . . . . . . . 2 Parts Scanalyzed 1 | . . . . . . . . . . . 1 Part Schematics Acquired . | . . . . . . . . . . . . Parts Damaged . | . . . . . . . . . . . . Bothacking | -11 -10 -9 -8 -7 -7 -6 -5 -4 -3 -3 -2 ------------ Run | Jun Mat Mat Mat Fac DSF Fac Fac Fac Res Tes Res Used RIF Installer . | . . . . . . . . . . . . Robots Hacked . | . . . . . . . . . . . . Non-combat . | . . . . . . . . . . . . Combat . | . . . . . . . . . . . . Robot Hacks Applied . | . . . . . . . . . . . . Relay Couplers Released . | . . . . . . . . . . . . Fabnet Peak Effective % . | . . . . . . . . . . . . Robots Rewired . | . . . . . . . . . . . . Allies Hacked . | . . . . . . . . . . . . Hacks Repelled . | . . . . . . . . . . . . Allies | -11 -10 -9 -8 -7 -7 -6 -5 -4 -3 -3 -2 -------- Run | Jun Mat Mat Mat Fac DSF Fac Fac Fac Res Tes Res Total Allies 3 | . . . . . . . . 1 1 . 1 Largest Group 1 | . . . . . . . . 1 1 . 1 Highest-Rated Group 26 | . . . . . . . . 10 10 . 26 Highest-Rated Ally 26 | . . . . . . . . 10 10 . 26 Total Orders 11 | . . . . . . . . 2 1 7 1 STAY 2 | . . . . . . . . . 1 . 1 ROAM 3 | . . . . . . . . . . 3 . FOLLOW 2 | . . . . . . . . 1 . 1 . TUNNEL 1 | . . . . . . . . 1 . . . EXPLORE 3 | . . . . . . . . . . 3 . Ally Attacks . | . . . . . . . . . . . . Total Damage . | . . . . . . . . . . . . Kills . | . . . . . . . . . . . . Allies Corrupted . | . . . . . . . . . . . . Allies Melted . | . . . . . . . . . . . . Intel | -11 -10 -9 -8 -7 -7 -6 -5 -4 -3 -3 -2 ------- Run | Jun Mat Mat Mat Fac DSF Fac Fac Fac Res Tes Res Robot Analysis Total 1 | . 1 . . . . . . . . . . Derelict Logs Recovered . | . . . . . . . . . . . . Drone Launches 23 | . . . . . . . . . . 23 . Drone Recoveries 5 | . . . . . . . . . . 5 . Exploration | -11 -10 -9 -8 -7 -7 -6 -5 -4 -3 -3 -2 ------------- Run | Jun Mat Mat Mat Fac DSF Fac Fac Fac Res Tes Res Turns Passed 1923 | . 185 54 97 176 81 172 281 287 221 131 238 Spaces Moved 3666 | 1 175 132 218 531 135 271 608 479 462 221 433 Core 51 | . . . . . . . . . . . 51 Treads . | . . . . . . . . . . . . Legs 55 | 1 54 . . . . . . . . . . Wheels . | . . . . . . . . . . . . Hover 60 | . . . . . . . . . . . 60 Flight 3500 | . 121 132 218 531 135 271 608 479 462 221 322 Fastest Speed 19 | 120 37 31 25 19 19 19 19 32 23 23 25 Average Speed 30 | 120 64 31 25 23 26 23 25 34 23 23 44 Slowest Speed 605 | 120 200 31 25 25 100 25 96 37 23 25 605 Overloaded Moves . | . . . . . . . . . . . . Propulsion Burnouts . | . . . . . . . . . . . . Robots Hopped 32 | . . 1 . 2 1 5 7 3 4 6 3 Cave-ins Triggered . | . . . . . . . . . . . . Exploration Rate (%) 29 | 2 39 24 31 15 88 8 18 16 15 79 15 Regions Visited 11 Branch Regions 1 Pre-discovered Areas . | . . . . . . . . . . . . Known Exits Taken 4 | . 1 1 . 1 . . 1 . . . . Unknown Exits Taken 6 | 1 . . 1 . . 1 . 1 1 1 . Scrap Searched . | . . . . . . . . . . . . Spaces Dug 2 | . . . . . . . 2 . . . . Terrain Destroyed 2 | . . . . . . . 2 . . . . Melee 2 | . . . . . . . 2 . . . . Projectile . | . . . . . . . . . . . . AOE . | . . . . . . . . . . . . Terrain Rammed . | . . . . . . . . . . . . Walls Destroyed . | . . . . . . . . . . . . Machines Disabled . | . . . . . . . . . . . . Actions | -11 -10 -9 -8 -7 -7 -6 -5 -4 -3 -3 -2 --------- Run | Jun Mat Mat Mat Fac DSF Fac Fac Fac Res Tes Res Total 4403 | . 214 144 259 581 176 373 716 596 572 292 480 Wait 544 | . 2 7 37 32 35 70 81 104 102 58 16 Move 3596 | . 174 129 217 526 132 261 593 472 455 210 427 Hop 27 | . . 1 . 2 1 4 7 3 2 4 3 Pick Up 58 | . 6 1 2 8 5 6 9 6 5 6 4 Fast Attach 10 | . 2 . . 2 1 . 2 . . . 3 Attach 43 | . 1 4 3 2 . 6 4 9 5 1 8 Detach 12 | . . 2 . 1 . . . 2 1 . 6 Swap 21 | . 3 . . 4 2 2 4 . 1 4 1 Drop 34 | . 7 . . 4 . 2 10 . 1 3 7 Fire 19 | . 19 . . . . . . . . . . Melee 5 | . . . . . . . 5 . . . . Ram 6 | . . . . . . . 1 . . . 5 Kick . | . . . . . . . . . . . . Crush . | . . . . . . . . . . . . Escape Stasis 22 | . . . . . . 22 . . . . . Rewire . | . . . . . . . . . . . . Trap . | . . . . . . . . . . . . Miscellaneous 6 | . . . . . . . . . . 6 . Route ------- -11/Junkyard -10/Materials (discovered 4 exits: *Mat x3 / [*Min]) -9/Materials (discovered 3 exits: *Mat x3) -8/Materials -7/Factory -7/DSF -6/Factory -5/Factory (discovered 4 exits: *Fac x4) -4/Factory -3/Research -3/Testing -2/Research (discovered 3 exits: Acc x3) History --------- Turn | Location | Event 1 | -11/Junkyard | Discovered new exit (range 0) 1 | -11/Junkyard | Entered Materials 35 | -10/Materials | Identified exit to Materials 129 | -10/Materials | Destroyed 7 combat bots 146 | -10/Materials | Discovered new exit (range 17) 186 | -10/Materials | Entered another Materials area 186 | -9/Materials | Evolved 2 slots: Propulsion x2 235 | -9/Materials | Identified exit to Materials 240 | -9/Materials | Entered another Materials area 240 | -8/Materials | Evolved 2 slots: Propulsion x2 331 | -8/Materials | Discovered new exit (range 18) 337 | -8/Materials | Entered Factory 337 | -7/Factory | Evolved 2 slots: Propulsion x1, Utility x1 513 | -7/Factory | Identified exit to DSF 513 | -7/Factory | Entered DSF 534 | -7/DSF | Additional patrols routed to DSF 586 | -7/DSF | Discovered new exit (range 15) 594 | -7/DSF | Entered Factory 594 | -6/Factory | Evolved 2 slots: Propulsion x1, Utility x1 760 | -6/Factory | Discovered new exit (range 7) 766 | -6/Factory | Entered another Factory area 766 | -5/Factory | Evolved 2 slots: Power x1, Utility x1 993 | -5/Factory | Identified exit to Factory 1047 | -5/Factory | Entered another Factory area 1047 | -4/Factory | Evolved 2 slots: Utility x2 1065 | -4/Factory | Lost 8 parts (2p3n3u) 1150 | -4/Factory | Spotted B-86 Titan 1210 | -4/Factory | Fabricated T-07 Excavator? 1269 | -4/Factory | P-70 Sage assimilated allied Excavator 7a 1276 | -4/Factory | Spotted B-86 Titan 1327 | -4/Factory | Discovered new exit (range 10) 1334 | -4/Factory | Entered Research 1334 | -3/Research | Evolved 2 slots: Propulsion x2 1461 | -3/Research | Spotted B-86 Titan 1552 | -3/Research | Discovered new exit (range 12) 1555 | -3/Research | Entered Testing 1606 | -3/Testing | Discovered new exit (range 76) 1609 | -3/Testing | Superbehemoth self-activated to run performance analysis 1630 | -3/Testing | Build established: Hacker-Sprinter 1681 | -3/Testing | Spotted Superbehemoth 1686 | -3/Testing | Entered Research 1686 | -2/Research | Evolved 2 slots: Utility x2 1739 | -2/Research | Identified exit to Access 1859 | -2/Research | Lost 8 parts (8n) 1887 | -2/Research | Core integrity fell below 50% 1919 | -2/Research | Core integrity fell below 20% 1924 | -2/Research | Destroyed by C-57 Dissector with Dual-blade Saw Last Messages --------------- 01882_ Slammed into G-73 Enforcer. 01884_ Critical hit (Burn: +37). 01884_ Slammed into G-73 Enforcer. 01885_ K-01 Serf cleans the Dark Matter Chamber. 01889_ Exp. Coolant Injector destroyed. 01890_ K-01 Serf cleans the Dark Matter Chamber. 01897_ ALERT: Suspicious intruders detected, dispatching Cutter reinforcements to area. 01913_ Slammed into C-57 Dissector. 01913_ Destabilizing: Core damaged (-43). 01914_ Imp. Matter Compressor severed. 01917_ Imp. Signal Interpreter destroyed. 01917_ Critical hit (Blast). 01917_ Knocked back. 01918_ R-10 Processor collects Imp. Matter Compressor. 01918_ Knocked back. 01919_ Imp. Gyrokinetic Inverter destroyed. 01920_ Imp. Hacking Suite destroyed. 01920_ Knocked back. 01923_ Imp. Hacking Suite severed. 01923_ Slammed into A-15 Conveyor. Map ----- +----------------------------------------------------+ | ??????????????????????? ?????????????????????????# | | ?????????????????????? ????????????????????????# | | ????????????????????? ????????????????????????# | | ?????????????????????? ???????????????????????# | | ??????????????????????? ???????????????????????# | | ???????????????????????? ?#????????????????????# | | ????????????????????????? #??????????????????### | | ?????????????????????????? #??????????????????+ | | ??????????????????####+####/####???????????????# | | ??????????????????# #????????######## | | ??????????????????# #????????# | | ??????????????????# #????????# | | ??????????????????# * ########## | | ??????????????????# R / | | ??????????????????#####;;g##################### | | ??????????" ????????# #????????????????# | | ?????????"" ####### #????????????????# | | ?????????"" k #????????????????# | | ??????? H #????????????????# | | ??????? #????????????????# | | ???????? ####### #????????????????# | | ????????#### ????????# % #????????????????# | | ?????????????????????#### ####????????????????+ | | ????????????????????????#c#???????????????????#### | | ????????????????????????#c#??????????????????????? | | ????????????????????????#@#??????????????????????? | | ????????????????????????# #??????????????????????? | | ????????????????????????#u#??????????????????????? | | ????????????????????????# #??????????????????????? | | ????????????????????????# #??????????????????????? | | ????????????????????????# #??????????????????????? | | ????????????????????????# #??????????????????????? | | ???????????????????????? #??????????????????????? | | ???????????????????????? ??????????????????????? | | ???????????????????????? ??????????????????????? | | ???????????????????????? ??????????????????????? | | ???????????????????????? ??????????????????????? | | ???????????????????????? ??????????????????????? | | ???????????????????????? ??????????????????????? | | ????????????????????????###??????????????????????? | | ?????????????????????????????????????????????????? | | ?????????????????????????????????????????????????? | | ?????????????????????????????????????????????????? | | ?????????????????????????????????????????????????? | | ?????????????????????????????????????????????????? | | ?????????????????????????????????????????????????? | | ?????????????????????????????????????????????????? | | ?????????????????????????????????????????????????? | | ?????????????????????????????????????????????????? | | ?????????????????????????????????????????????????? | +----------------------------------------------------+ Best States ------------- Heat Dissipation 49 Coolant Potential 120 Energy Generation 39 Energy Capacity 385 Matter Stores 300 Matter Capacity 600 Sight Range 20 Terrain Scan Density 10 ECM Strength 1 Jamming Range 12 Evasion (%) 66 Core Analysis 6 Offensive Hacking 24 Defensive Hacking 10 Item Schematics ----------------- Q-thruster | -3/Research | Hacked Lgt. Quantum Reactor | -3/Research | Hacked Robot Schematics ------------------ None Fabricated ------------ T-07 Excavator | x1 | -4/Factory | Preloaded Alien Tech Used ----------------- None Achievements -------------- None Challenges ------------ None Game ------ Seed TachyonDamperCycler Manual? 0 Play Time 01:12:37 Cumulative 120.8 hours Start 2023.03.05 @ 23:32:50 End 2023.03.06 @ 00:46:19 Sessions 1 Manual Loads 0 Difficulty Rogue Special Mode None Game No. 178 Rogue 178 Adventurer 0 Explorer 0 Win Type - Total 2 Types 1/0/1/0/0/0/0/0/0 Lore% 49 Gallery% 58 Achievement% 50 Wizard Run 0 Options --------- ASCII 0 Keyboard 0 Movement Mouse Keybinds 0 Fullscreen 2 Font 24/Proggy Map View 113x50 Tactical HUD 1 Map Filters NONE Filters NONE Steam 1 RUN: 6d3c6aa7-7206-45df-83be-21a3aa6ae6c1